bitfinex/quotes_SOLUSD_20250125
["timestamp","ask_amount","ask_price","bid_price","bid_amount"]
[1737776012719,7.7572,251.22,251.1,27.759284]
[1737776013242,7.7572,251.22,251.09,20.0]
[1737776013541,7.7572,251.22,251.11,3.0]
[1737776013745,7.7572,251.22,251.12,23.776884]
[1737776015850,7.7572,251.22,251.07,3.0]
[1737776016048,7.7572,251.22,251.08,23.776884]
[1737776019012,7.7572,251.22,251.06,27.759984]
[1737776020231,7.7572,251.22,251.1,23.776884]
[1737776022718,7.7572,251.22,251.08,23.776884]
[1737776023442,7.7572,251.22,251.1,23.776884]
[1737776024440,7.7572,251.22,251.11,3.9823]
[1737776025347,7.7572,251.22,251.12,23.776884]
[1737776025548,1.5298,251.22,251.11,13.938]
[1737776025753,1.5298,251.22,251.11,3.9823]
[1737776026125,1.5298,251.22,251.12,23.776884]
[1737776026553,1.5298,251.22,251.13,3.982]
[1737776027130,6.3997,251.28,251.18,23.776884]
[1737776027131,7.9603,251.28,251.18,23.776884]
[1737776027647,7.9603,251.28,251.17,20.0]
[1737776028036,7.9603,251.28,251.18,23.776884]
[1737776028566,7.9603,251.28,251.1,12.01]
[1737776028728,7.9603,251.28,251.16,23.776884]
[1737776029227,7.9603,251.28,251.19,43.776884]
[1737776029424,0.03,251.28,251.19,55.786884]
[1737776029620,0.03,251.28,251.2,35.786884]
[1737776030730,0.03,251.28,251.22,23.776884]
[1737776030931,0.03,251.28,251.2,3.9808]
[1737776031131,0.03,251.28,251.2,47.757684]
[1737776031331,0.03,251.28,251.21,23.776884]
[1737776032851,0.03,251.28,251.22,3.9805]
[1737776033035,0.03,251.28,251.23,23.776884]
[1737776033238,0.03,251.28,251.27,23.776884]
[1737776033556,1.5606,251.42,251.31,23.776884]
[1737776033752,1.5606,251.42,251.33,23.776884]
[1737776034527,1.5606,251.42,251.33,27.755584]
[1737776034736,1.5606,251.42,251.33,23.776884]
[1737776038559,1.5906,251.42,251.33,23.776884]
[1737776040159,0.03,251.42,251.33,23.776884]
[1737776040540,0.03,251.42,251.32,3.0]
[1737776040749,0.03,251.42,251.3,2.98]
[1737776041567,0.03,251.42,251.31,23.776884]
[1737776041942,0.03,251.42,251.26,23.776884]
[1737776042161,0.03,251.42,251.28,23.776884]
[1737776042748,6.2867,251.41,251.27,2.98]
[1737776043066,1.5093,251.4,251.16,25.0000131]
[1737776043245,1.5093,251.4,251.19,23.58]
[1737776044367,1.5093,251.4,251.2,23.776884]
[1737776045365,1.5093,251.4,251.22,23.776884]
[1737776046463,2.5093,251.4,251.17,2.98]
[1737776046669,7.796,251.39,251.19,19.37]
[1737776046863,1.0,251.38,251.2,23.776884]
[1737776047053,1.0,251.38,251.19,19.37]
[1737776047253,8.796,251.39,251.17,2.98]
[1737776047454,7.796,251.39,251.18,23.776884]
[1737776048171,8.796,251.39,251.17,3.9813]
[1737776048347,8.796,251.39,251.18,2.98]
[1737776048858,8.796,251.39,251.19,23.776884]
[1737776049454,8.796,251.39,251.19,26.756884]
[1737776050168,8.796,251.39,251.19,2.96]
[1737776050363,1.5093,251.36,251.19,2.96]
[1737776050671,6.2867,251.35,251.19,2.96]
[1737776053278,6.246926,251.35,251.18,23.839884]
[1737776053757,2.5914,251.34,251.18,0.063]
[1737776053966,1.5914,251.34,251.18,0.063]
[1737776054146,1.5914,251.33,251.18,0.063]
[1737776054557,1.0,251.32,251.18,0.063]
[1737776054757,1.5914,251.31,251.18,0.063]
[1737776055977,1.5914,251.31,251.18,23.839884]
[1737776056177,6.0586,251.3,251.18,23.839884]
[1737776056354,6.0586,251.3,251.18,0.063]
[1737776060387,6.0586,251.3,251.18,23.839884]
[1737776061662,6.0586,251.3,251.18,0.063]
[1737776061990,6.0586,251.3,251.18,4.0441]
[1737776062657,6.0586,251.3,251.2,23.776884]
[1737776062861,6.0586,251.3,251.2,20.0]
[1737776064289,6.0586,251.3,251.18,13.9971]
[1737776064290,6.0586,251.3,251.19,23.776884]
[1737776064984,6.0586,251.3,251.21,43.776884]
[1737776065889,6.0586,251.3,251.22,3.9805]
[1737776068172,0.03,251.35,251.25,23.776884]
[1737776068695,0.03,251.35,251.29,23.776884]
[1737776068867,0.03,251.35,251.29,26.716884]
[1737776069060,0.03,251.35,251.29,38.656884]
[1737776069489,0.03,251.35,251.33,23.776884]
[1737776069989,0.03,251.35,251.34,27.755484]
[1737776072069,0.03,251.35,251.29,2.94]
[1737776072070,0.03,251.35,251.29,18.8593]
[1737776072275,0.03,251.35,251.3,30.0]
[1737776072499,0.03,251.35,251.32,20.0]
[1737776072689,0.03,251.35,251.33,20.0]
[1737776073486,0.03,251.35,251.34,23.776884]
[1737776076105,0.0001,251.42,251.41,1.0]
[1737776076303,6.3977,251.62,251.4,11.94]
[1737776076508,6.3977,251.62,251.41,3.06]
[1737776077007,7.3977,251.62,251.37,11.94]
[1737776077205,1.0,251.57,251.38,3.06]
[1737776077412,1.5263,251.55,251.38,3.06]
[1737776078378,2.5263,251.55,251.38,3.06]
[1737776080706,2.5263,251.55,251.34,0.063]
[1737776080919,2.5263,251.55,251.35,3.06]
[1737776081704,6.3259,251.54,251.36,3.04]
[1737776082518,1.6595,251.53,251.34,23.643]
[1737776082698,6.3259,251.52,251.35,3.04]
[1737776083013,6.3259,251.5,251.35,3.04]
[1737776084681,6.3259,251.5,251.34,0.063]
[1737776084890,1.6595,251.49,251.34,0.063]
[1737776085819,6.3259,251.48,251.34,0.063]
[1737776086397,1.6595,251.47,251.34,0.063]
[1737776089213,1.6595,251.47,251.34,20.063]
[1737776089616,1.6595,251.47,251.35,23.776884]
[1737776090506,1.6595,251.47,251.36,3.04]
[1737776095311,1.6595,251.47,251.34,0.063]
[1737776096391,1.0,251.44,251.34,0.063]
[1737776096595,1.6062111,251.55,251.18,0.063]
[1737776096596,1.0,251.39,251.18,0.063]
[1737776096912,1.0,251.39,251.22,30.0]
[1737776097702,1.0,251.39,251.18,0.063]
[1737776098015,1.0,251.39,251.18,30.063]
[1737776098314,8.1578,251.4,251.18,30.063]
[1737776098524,1.0,251.39,251.18,30.063]
[1737776098712,8.1578,251.4,251.19,23.776884]
[1737776100095,8.1578,251.4,251.18,30.063]
[1737776100298,1.0,251.39,251.18,30.063]
[1737776100724,1.0,251.39,251.19,3.04]
[1737776100946,8.1578,251.4,251.19,3.04]
[1737776101405,8.1578,251.4,251.2,23.776884]
[1737776101603,8.1578,251.4,251.2,35.716884]
[1737776102518,6.5332,251.51,251.28,11.94]
[1737776102823,6.5332,251.51,251.26,11.94]
[1737776103019,0.03,251.48,251.26,11.94]
[1737776103405,0.03,251.48,251.27,23.776884]
[1737776103933,9.1961,251.47,251.22,3.9805]
[1737776104422,6.5332,251.44,251.22,20.0]
[1737776104624,6.5332,251.44,251.2,27.757684]
[1737776104625,1.6629,251.43,251.2,27.757684]
[1737776105002,1.6629,251.43,251.22,23.776884]
[1737776105198,1.6629,251.43,251.2,27.757684]
[1737776105199,1.6629,251.37,251.19,0.063]
[1737776105411,8.1961,251.37,251.19,0.063]
[1737776105819,1.0,251.35,251.19,0.063]
[1737776106018,6.5332,251.31,251.19,0.063]
[1737776106223,7.5332,251.31,251.19,0.063]
[1737776108132,6.5332,251.31,251.19,0.063]
[1737776109832,7.5332,251.31,251.19,0.063]
[1737776110604,1.6629,251.28,251.19,0.063]
[1737776112804,23.776884,251.27,251.19,0.063]
[1737776113009,6.5332,251.25,251.19,0.063]
[1737776113926,1.5682,251.23,251.19,0.063]
[1737776115232,1.47474758,251.23,251.19,0.063]
[1737776118235,1.0,251.22,251.19,0.063]
[1737776118411,1.47474758,251.23,251.19,0.063]
[1737776119017,1.0,251.22,251.19,0.063]
[1737776120813,1.47474758,251.23,251.19,0.063]
[1737776126053,2.47474758,251.23,251.19,0.063]
[1737776127348,1.0,251.21,251.18,0.063]
[1737776127514,23.776884,251.2,251.18,0.063]
[1737776131544,1.0,251.19,250.97,1.6979]
[1737776131749,6.3815,251.18,250.98,3.0]
[1737776133948,6.3815,251.18,250.97,1.6979]
[1737776134321,6.3815,251.18,250.97,5.6823]
[1737776135748,6.3815,251.18,250.97,8.6823]
[1737776136344,6.3815,251.18,250.97,1.6979]
[1737776136345,24.776884,251.17,250.97,1.6979]
[1737776136929,1.0,251.14,250.97,1.6979]
[1737776137127,23.776884,251.15,250.97,1.6979]
[1737776137330,1.0,251.14,250.97,1.6979]
[1737776139432,1.0,251.17,250.97,5.6824]
[1737776139653,24.776884,251.17,250.97,5.6824]
[1737776140457,1.0,251.17,250.98,3.9842]
[1737776141554,1.0,251.17,250.97,1.6979]
[1737776142453,1.0,251.17,250.97,5.6823]
[1737776147456,0.03,251.2,250.98,23.776884]
[1737776147636,0.03,251.2,251.07,10.7261]
[1737776147840,0.03,251.2,251.08,4.0456]
[1737776149670,0.03,251.2,251.09,27.759384]
[1737776149842,0.03,251.2,251.14,6.2548]
[1737776150046,0.03,251.2,251.16,23.776884]
[1737776150857,0.03,251.2,251.17,3.9813]
[1737776151546,0.03,251.2,251.18,23.776884]
[1737776152252,0.03,251.2,251.18,27.757984]
[1737776153967,0.03,251.2,251.17,2.96]
[1737776155481,1.03,251.4,251.17,2.96]
[1737776155482,0.03,251.4,251.25,20.0]
[1737776155858,0.03,251.4,251.32,1.5748]
[1737776156054,0.03,251.4,251.34,30.280884]
[1737776156573,0.03,251.4,251.34,34.259484]
[1737776157371,0.03,251.4,251.34,30.280884]
[1737776159771,0.03,251.4,251.34,6.504]
[1737776160675,0.03,251.4,251.32,1.5748]
[1737776163577,0.03,251.4,251.26,1.5748]
[1737776163878,6.3169,251.4,251.23,2.96]
[1737776166155,6.3169,251.4,251.14,1.5748]
[1737776166156,24.776884,251.39,251.14,1.5748]
[1737776166473,1.0,251.35,251.14,1.5748]
[1737776166686,1.0,251.35,251.15,2.96]
[1737776166857,1.0,251.35,251.16,23.57]
[1737776167059,1.0,251.35,251.15,2.96]
[1737776167875,1.0,251.33,251.14,1.5748]
[1737776168180,23.776884,251.32,251.14,2.96]
[1737776168495,1.0,251.33,251.14,2.96]
[1737776168682,1.0,251.35,251.14,2.96]
[1737776169479,1.0,251.38,251.14,2.96]
[1737776169861,0.39995166,251.38,251.14,2.96]
[1737776170164,1.0,251.39,251.14,6.9418]
[1737776170366,23.776884,251.38,251.15,23.776884]
[1737776170558,1.0,251.37,251.14,2.96]
[1737776170758,23.776884,251.36,251.14,2.96]
[1737776172998,1.0,251.39,251.15,23.776884]
[1737776173382,6.3169,251.4,251.15,23.776884]
[1737776173692,6.3169,251.4,251.19,3.981]
[1737776174379,6.3169,251.4,251.17,20.0]
[1737776174677,6.3169,251.4,251.18,43.776884]
[1737776175072,5.8169,251.4,251.18,43.776884]
[1737776175679,23.776884,251.39,251.15,3.9816]
[1737776176070,23.776884,251.39,251.16,23.776884]
[1737776177691,23.776884,251.39,251.16,26.716884]
[1737776178891,5.8169,251.4,251.16,30.698284]
[1737776179093,5.8169,251.4,251.19,20.0]
[1737776180691,5.8169,251.4,251.16,30.698284]
[1737776182704,5.8169,251.4,251.16,30.761284]
[1737776183074,5.8469,251.4,251.18,3.9812]
[1737776184292,5.8469,251.4,251.19,23.776884]
[1737776185197,23.776884,251.39,251.16,0.063]
[1737776185403,23.776884,251.39,251.17,2.92]
[1737776186502,6.0871,251.36,251.17,2.92]
[1737776187312,1.6292,251.34,251.16,0.063]
[1737776188806,1.6292,251.34,251.16,23.839884]
[1737776189806,1.6292,251.34,251.19,20.0]
[1737776190598,1.6292,251.34,251.16,27.821284]
[1737776190803,1.6292,251.34,251.16,23.839884]
[1737776190989,1.6292,251.34,251.16,27.821284]
[1737776191378,1.6292,251.34,251.17,2.92]
[1737776193201,1.6292,251.34,251.16,27.821284]
[1737776193404,1.6292,251.34,251.17,2.92]
[1737776201805,1.6292,251.34,251.16,2.943]
[1737776202508,6.0764,251.33,251.16,2.943]
[1737776204706,6.0764,251.33,251.16,0.063]
[1737776209709,1.6005,251.32,251.16,0.063]
[1737776215822,6.5445,251.3,251.16,0.063]
[1737776217515,1.6321,251.29,251.16,0.063]
[1737776221036,6.5445,251.28,251.16,0.063]
[1737776233732,23.776884,251.27,251.16,0.063]
[1737776234058,1.516,251.26,251.16,0.063]
[1737776234433,23.776884,251.25,251.16,0.063]
[1737776234639,6.3059,251.24,251.16,0.063]
[1737776236153,23.776884,251.23,251.16,0.063]
[1737776236552,23.776884,251.21,251.16,0.063]
[1737776246964,1.516,251.22,251.16,0.063]
[1737776247558,6.3059,251.24,251.16,0.063]
[1737776248143,1.516,251.28,251.16,0.063]
[1737776249348,1.516,251.28,251.16,2.863]
[1737776252080,6.3059,251.31,251.17,23.776884]
[1737776252367,1.59129913,251.37,251.2,20.0]
[1737776252368,1.516,251.34,251.2,20.0]
[1737776252573,1.516,251.34,251.21,3.9807]
[1737776252874,1.516,251.34,251.2,20.0]
[1737776255957,23.776884,251.36,251.2,20.0]
[1737776257377,5.8219,251.37,251.22,3.9805]
[1737776258975,7.4293,251.37,251.22,3.9805]
[1737776260271,7.4293,251.37,251.24,20.0]
[1737776262665,7.4293,251.37,251.19,25.6244]
[1737776262879,23.776884,251.36,251.19,4.4236]
[1737776263587,23.776884,251.36,251.19,28.4046]
[1737776269364,23.776884,251.36,251.19,26.761]
[1737776269869,23.776884,251.36,251.16,0.063]
[1737776270069,23.776884,251.36,251.17,2.78]
[1737776270283,23.776884,251.36,251.16,0.063]
[1737776270477,23.776884,251.36,251.16,20.063]
[1737776270667,23.776884,251.36,251.16,0.063]
[1737776271787,23.776884,251.36,251.16,4.0445]
[1737776271993,7.4293,251.37,251.17,23.776884]
[1737776272292,23.776884,251.36,251.17,23.776884]
[1737776272783,23.776884,251.36,251.2,20.0]
[1737776280987,23.776884,251.36,251.17,20.0]
[1737776282492,23.776884,251.36,251.17,3.9813]
[1737776282877,23.776884,251.36,251.18,20.0]
[1737776285505,23.776884,251.34,251.17,2.76]
[1737776286782,23.776884,251.34,251.17,22.76]
[1737776289801,23.776884,251.34,251.16,20.063]
[1737776289802,23.776884,251.32,251.16,20.063]
[1737776290001,6.666,251.31,251.16,0.063]
[1737776290389,23.776884,251.3,251.16,0.063]
[1737776291293,23.776884,251.3,251.17,0.063]
[1737776292705,23.776884,251.28,251.17,0.063]
[1737776293489,23.776884,251.26,251.17,0.063]
[1737776301616,6.666,251.27,251.17,0.063]
[1737776302891,23.776884,251.26,251.17,0.063]
[1737776308616,23.776884,251.24,251.17,0.063]
[1737776308807,23.776884,251.22,251.17,0.063]
[1737776309006,23.776884,251.19,251.17,0.063]
[1737776317822,7.051,251.17,251.13,0.063]
[1737776318226,23.776884,251.13,251.08,0.063]
[1737776318404,23.776884,251.1,251.08,0.063]
[1737776321308,23.776884,251.1,250.93,2.823]
[1737776322017,23.776884,251.1,251.08,0.063]
[1737776322346,24.17683566,251.1,250.93,0.063]
[1737776323327,23.776884,251.04,250.93,0.063]
[1737776323530,23.776884,251.01,250.93,0.063]
[1737776323743,0.39995166,251.0,250.93,0.063]
[1737776324106,3.83133024,251.08,250.93,0.063]
[1737776324311,5.45943024,251.08,250.93,0.063]
[1737776325936,23.776884,251.07,250.93,0.063]
[1737776328514,0.39995166,251.06,250.93,0.063]
[1737776338438,5.48943024,251.08,250.93,0.063]
[1737776338626,0.03,251.08,250.96,1.6147]
[1737776340445,23.806884,251.08,250.96,1.6147]
[1737776342252,24.20683566,251.08,250.96,1.6147]
[1737776344748,23.806884,251.08,250.96,1.6147]
[1737776348945,0.03,251.08,250.96,1.6147]
[1737776349941,0.03,251.08,250.97,4.0475]
[1737776350141,0.03,251.08,250.97,0.063]
[1737776350450,23.806884,251.08,250.97,0.063]
[1737776352042,0.03,251.08,250.97,4.0474]
[1737776356957,0.03,251.08,250.97,0.063]
[1737776358338,0.42995166,251.08,250.97,0.063]
[1737776358540,23.776884,251.07,250.97,0.063]
[1737776358740,0.39995166,251.06,250.97,0.063]
[1737776359167,23.776884,251.04,250.97,0.063]
[1737776359352,0.39995166,251.03,250.97,0.063]
[1737776363853,81.4,251.05,250.97,0.063]
[1737776364261,24.17683566,251.04,250.97,0.063]
[1737776366451,81.4,251.05,250.97,0.063]
[1737776369584,0.03,251.08,250.98,7.8525]
[1737776371070,0.03,251.08,250.98,11.8368]
[1737776371687,0.03,251.08,250.98,7.8525]
[1737776372975,0.03,251.08,250.98,11.8367]
[1737776375977,0.03,251.08,251.01,1.6132]
[1737776376574,23.776884,251.18,251.01,1.6132]
[1737776377389,23.776884,251.18,251.02,3.9837]
[1737776378094,23.776884,251.18,251.01,1.6132]
[1737776378973,0.39995166,251.17,251.01,1.6132]
[1737776379461,23.776884,251.18,251.01,1.6132]
[1737776381595,23.776884,251.16,251.01,1.6132]
[1737776381780,23.776884,251.16,251.01,21.6132]
[1737776382295,23.776884,251.16,251.01,25.597]
[1737776382479,80.43,251.17,251.01,25.597]
[1737776383993,23.776884,251.16,251.01,25.597]
[1737776388192,80.43,251.17,251.01,25.597]
[1737776388393,0.03,251.18,251.01,25.597]
[1737776388394,0.03,251.18,251.05,20.0]
[1737776388574,0.03,251.18,251.06,1.5199]
[1737776389387,0.03,251.18,251.07,6.0101]
[1737776389585,0.03,251.18,251.08,1.5199]
[1737776390601,0.03,251.18,251.12,1.5199]
[1737776391983,0.03,251.18,251.12,4.2799]
[1737776392512,0.03,251.18,251.12,8.2619]
[1737776392816,0.03,251.18,251.13,6.0101]
[1737776393293,0.03,251.34,251.14,1.5199]
[1737776393789,23.806884,251.34,251.14,1.5199]
[1737776393983,0.03,251.34,251.14,1.5199]
[1737776394188,0.03,251.34,251.15,3.9816]
[1737776394796,23.806884,251.34,251.14,1.5199]
[1737776395004,23.806884,251.34,251.14,5.5016]
[1737776395391,25.44067559,251.34,251.14,5.5016]
[1737776397807,23.806884,251.34,251.17,1.6665]
[1737776398180,0.03,251.34,251.17,1.6665]
[1737776399009,23.806884,251.34,251.17,5.6477]
[1737776399883,23.806884,251.34,251.17,1.6665]
[1737776403203,24.806884,251.34,251.17,1.6665]
[1737776403409,0.39995166,251.33,251.17,1.6665]
[1737776403587,23.776884,251.31,251.17,1.6665]
[1737776403783,0.39995166,251.3,251.17,1.6665]
[1737776407006,0.39995166,251.3,251.17,1.7295]
[1737776408410,23.776884,251.28,251.17,1.7295]
[1737776410909,80.43,251.29,251.17,1.7295]
[1737776411487,23.776884,251.28,251.17,1.7295]
[1737776430533,23.806884,251.28,251.17,1.7295]
[1737776434735,24.20683566,251.28,251.17,1.7295]
[1737776436024,23.806884,251.28,251.17,1.7295]
[1737776438635,0.03,251.28,251.17,1.7295]
[1737776438840,0.03,251.28,251.19,1.577]
[1737776442540,0.03,251.28,251.23,20.0]
[1737776442736,0.03,251.28,251.24,7.5784]
[1737776442946,0.03,251.34,251.28,1.577]
[1737776444121,0.03,251.4,251.34,1.577]
[1737776445745,0.03,251.4,251.37,20.0]
[1737776447149,0.03,251.45,251.39,1.577]
[1737776447326,0.03,251.45,251.39,4.317]
[1737776454648,0.03,251.45,251.39,1.577]
[1737776455450,0.42995166,251.45,251.33,1.5755]
[1737776455753,24.20683566,251.45,251.27,1.5755]
[1737776456454,24.20683566,251.45,251.27,21.5755]
[1737776456837,25.20683566,251.45,251.27,1.5755]
[1737776457155,23.806884,251.45,251.27,1.5755]
[1737776458139,25.44047556,251.45,251.27,1.5755]
[1737776459557,25.44047556,251.45,251.27,21.5755]
[1737776459754,23.806884,251.45,251.27,21.5755]
[1737776460360,23.806884,251.45,251.37,0.063]
[1737776462151,24.17683566,251.44,251.37,0.063]
[1737776462660,0.39995166,251.44,251.37,0.063]
[1737776464860,23.776884,251.43,251.37,0.063]
[1737776465042,0.39995166,251.42,251.37,0.063]
[1737776466060,80.43,251.44,251.37,0.063]
[1737776466449,23.776884,251.43,251.37,0.063]
[1737776476161,24.17683566,251.43,251.37,0.063]
[1737776478667,25.17683566,251.43,251.37,0.063]
[1737776481777,24.17683566,251.43,251.37,0.063]
[1737776481970,80.43,251.44,251.37,0.063]
[1737776482348,23.776884,251.43,251.37,0.063]
[1737776483473,23.806884,251.43,251.37,0.063]
[1737776487377,0.03,251.43,251.37,0.063]
[1737776496801,0.42995166,251.43,251.37,0.063]
[1737776497187,0.03,251.43,251.37,0.063]
[1737776510036,0.03,251.43,251.38,1.6422]
[1737776513009,0.03,251.43,251.39,23.776884]
[1737776513201,0.03,251.43,251.4,2.74]
[1737776514199,0.03,251.43,251.4,6.7176]
[1737776514816,0.03,251.43,251.4,2.74]
[1737776516421,0.03,251.43,251.4,6.7177]
[1737776518724,0.03,251.43,251.4,2.74]
[1737776518898,0.03,251.43,251.4,22.74]
[1737776519522,0.03,251.43,251.38,1.6422]
[1737776521013,0.03,251.43,251.37,0.063]
[1737776532631,0.03,251.43,251.38,1.5893]
[1737776536131,0.03,251.43,251.4,6.1158]
[1737776540820,0.03,251.43,251.41,23.776884]
[1737776542233,0.03,251.43,251.41,99.176884]
[1737776543636,0.03,251.43,251.41,75.4]
[1737776548126,0.03,251.43,251.4,0.063]
[1737776550934,0.03,251.43,251.42,43.776884]
[1737776552840,0.02,251.45,251.43,29.892684]
[1737776553026,0.02,251.45,251.44,1.5798]
[1737776553228,0.02,251.45,251.44,25.356684]
[1737776553422,0.02,251.45,251.44,119.73762095]
[1737776559528,0.01,251.48,251.47,44.776884]
[1737776560644,0.01,251.48,251.47,48.753484]
[1737776562452,0.01,251.48,251.47,47.753484]
[1737776562855,0.01,251.48,251.47,123.153484]
[1737776564731,0.01,251.48,251.47,119.176884]
[1737776565135,0.01,251.48,251.47,121.916884]
[1737776566853,6.3973,251.65,251.51,20.0]
[1737776567045,6.3973,251.65,251.52,23.776884]
[1737776570071,6.3973,251.65,251.52,27.752584]
[1737776570958,6.3973,251.65,251.52,103.152584]
[1737776582067,6.3973,251.65,251.52,99.176884]
[1737776584078,6.3973,251.65,251.53,2.74]
[1737776584371,6.3973,251.65,251.53,26.516884]
[1737776584949,6.3973,251.65,251.57,20.0]
[1737776585170,6.3973,251.65,251.58,23.776884]
[1737776587978,8.2125,251.74,251.58,23.776884]
[1737776588172,8.2125,251.74,251.58,103.151584]
[1737776589778,8.2125,251.74,251.62,23.776884]
[1737776589977,8.2125,251.74,251.65,20.0]
[1737776590773,0.03,251.8,251.66,27.750484]
[1737776591077,0.03,251.8,251.67,2.74]
[1737776592472,23.806884,251.8,251.67,2.74]
[1737776594179,23.806884,251.8,251.62,75.4]
[1737776594180,23.776884,251.78,251.62,75.4]
[1737776594376,23.776884,251.78,251.63,2.74]
[1737776594890,23.776884,251.78,251.62,75.4]
[1737776594891,23.776884,251.78,251.62,2.74]
[1737776596808,23.776884,251.78,251.59,26.516884]
[1737776597296,23.776884,251.78,251.59,2.74]
[1737776597484,23.776884,251.75,251.58,2.74]
[1737776598685,1.651,251.74,251.58,2.74]
[1737776598889,30.009884,251.73,251.56,2.74]
[1737776599806,6.233,251.73,251.57,23.776884]
[1737776601711,6.233,251.73,251.57,99.176884]
[1737776601905,6.233,251.73,251.57,103.151884]
[1737776603587,6.233,251.73,251.57,99.176884]
[1737776604507,6.233,251.73,251.57,103.151784]
[1737776607188,6.233,251.73,251.6,20.0]
[1737776607388,6.233,251.73,251.61,23.776884]
[1737776607714,6.233,251.73,251.61,99.176884]
[1737776607911,0.03,251.78,251.66,20.0]
[1737776608106,0.03,251.78,251.7,20.0]
[1737776608419,0.03,251.78,251.71,2.74]
[1737776613429,0.03,251.78,251.71,78.14]
[1737776615910,0.03,251.78,251.71,75.4]
[1737776616107,7.5781,251.78,251.71,75.4]
[1737776619414,7.5781,251.78,251.68,78.14]
[1737776621430,7.5781,251.78,251.63,75.4]
[1737776621939,7.5781,251.78,251.64,2.74]
[1737776624730,7.5781,251.78,251.64,78.14]
[1737776628010,7.5781,251.78,251.65,23.776884]
[1737776628215,7.5781,251.78,251.65,99.176884]
[1737776628828,7.5781,251.78,251.65,103.150484]
[1737776629027,6.0303,251.78,251.65,103.150484]
[1737776631043,6.0303,251.78,251.65,122.13142095]
[1737776631643,6.0303,251.78,251.65,94.38093695]
[1737776632138,1.5674,251.77,251.61,2.74]
[1737776632523,1.5674,251.77,251.59,119.38095005]
[1737776632725,1.5674,251.77,251.6,2.74]
[1737776634538,6.5365,251.76,251.6,2.74]
[1737776634721,6.5365,251.76,251.59,94.38093695]
[1737776636027,1.5674,251.75,251.59,94.38093695]
[1737776638539,1.5674,251.75,251.6,23.776884]
[1737776638758,1.5674,251.75,251.6,27.751284]
[1737776639745,1.5674,251.75,251.6,104.789284]
[1737776641950,1.5674,251.75,251.63,20.0]
[1737776642247,1.5674,251.75,251.65,20.0]
[1737776642447,1.5674,251.75,251.65,75.4]
[1737776643442,1.5674,251.75,251.65,79.3736]
[1737776644532,1.5674,251.75,251.66,27.750384]
[1737776645029,0.03,251.78,251.66,103.150384]
[1737776645950,0.03,251.75,251.66,103.150384]
[1737776646143,0.03,251.75,251.66,125.004384]
[1737776646343,0.03,251.75,251.7,23.776884]
[1737776646644,0.03,251.75,251.72,23.776884]
[1737776646847,0.03,251.75,251.72,99.176884]